lending/lending_fUSD_20240110
["ID","MTS","AMOUNT","RATE_DAILY","PERIOD"]
[311017254,1704870668099,-501.94134021,0.0003041,2]
[311017255,1704870668109,-845.46,0.0003041,2]
[311017256,1704870668118,-500.0,0.0003041,2]
[311017257,1704870668128,-500.0,0.0003041,2]
[311017258,1704870668138,-563.62,0.0003041,2]
[311017259,1704870668148,-765.44,0.0003041,2]
[311017260,1704870668158,-500.0,0.0003041,2]
[311017261,1704870668168,-500.0,0.0003041,2]
[311017262,1704870668178,-513.55920012,0.0003041,2]
[311017263,1704870668188,-1036.85,0.0003041,2]
[311017264,1704870668197,-500.0,0.0003041,2]
[311017265,1704870668207,-500.0,0.0003041,2]
[311017266,1704870668217,-500.0,0.0003041,2]
[311017267,1704870668228,-1277.99,0.0003041,2]
[311017268,1704870668238,-500.0,0.0003041,2]
[311017269,1704870668247,-536.68,0.0003041,2]
[311017270,1704870668258,-500.0,0.0003041,2]
[311017271,1704870668268,-952.34,0.0003041,2]
[311017272,1704870668277,-654.11,0.0003041,2]
[311017273,1704870668287,-500.0,0.0003041,2]
[311017274,1704870668296,-500.0,0.0003041,2]
[311017275,1704870668306,-500.0,0.0003041,2]
[311017276,1704870668316,-500.0,0.0003041,2]
[311017277,1704870668327,-500.0,0.0003041,2]
[311017278,1704870668338,-898.09,0.0003041,2]
[311017279,1704870668348,-1181.06,0.0003041,2]
[311017280,1704870668357,-500.0,0.0003041,2]
[311017281,1704870668367,-695.04,0.0003041,2]
[311017282,1704870668376,-501.18,0.0003041,2]
[311017283,1704870668386,-506.84505908,0.0003041,2]
[311017284,1704870668395,-306.46522662,0.0003041,2]
[311017285,1704870668406,-502.82836255,0.0003041,2]
[311017286,1704870668416,-1579.48,0.0003041,2]
[311017287,1704870668426,-500.0,0.0003041,2]
[311017288,1704870668435,-559.26,0.0003041,2]
[311017289,1704870668445,-1391.88,0.0003041,2]
[311017290,1704870668454,-500.0,0.0003041,2]
[311017291,1704870668464,-500.0,0.0003041,2]
[311017292,1704870668473,-500.0,0.0003041,2]
[311017293,1704870668483,-500.0,0.0003041,2]
[311017294,1704870668492,-500.0,0.0003041,2]
[311017295,1704870668502,-1058.3,0.0003041,2]
[311017296,1704870668513,-2060.27,0.0003041,2]
[311017297,1704870668522,-1053.05,0.0003041,2]
[311017298,1704870668532,-1041.55,0.0003041,2]
[311017299,1704870668542,-500.0,0.0003041,2]
[311017300,1704870668551,-632.16,0.0003041,2]
[311017301,1704870668561,-510.69160859,0.0003041,2]
[311017302,1704870668571,-500.0,0.0003041,2]
[311017303,1704870668580,-500.0,0.0003041,2]
[311017304,1704870668590,-500.0,0.0003041,2]
[311017305,1704870668600,-500.0,0.0003041,2]
[311017306,1704870668609,-2547.44,0.0003041,2]
[311017307,1704870668618,-500.0,0.0003041,2]
[311017308,1704870668628,-959.27,0.0003041,2]
[311017309,1704870668637,-1651.15,0.0003041,2]
[311017310,1704870668647,-500.0,0.0003041,2]
[311017311,1704870668656,-501.85756374,0.0003041,2]
[311017312,1704870668666,-500.0,0.0003041,2]
[311017313,1704870668675,-500.0,0.0003041,2]
[311017314,1704870668685,-500.0,0.0003041,2]
[311017315,1704870668694,-500.0,0.0003041,2]
[311017316,1704870668704,-178.84705658,0.0003041,2]
[311017317,1704870668713,-500.0,0.0003041,2]
[311017318,1704870668723,-1891.65,0.0003041,2]
[311017319,1704870668732,-686.52,0.0003041,2]
[311017320,1704870668741,-2155.13,0.0003041,2]
[311017321,1704870668751,-500.0,0.0003041,2]
[311017322,1704870668760,-1987.61,0.0003041,2]
[311017323,1704870668769,-3891.23,0.0003041,2]
[311017324,1704870668779,-1522.98,0.0003041,2]
[311017325,1704870668788,-500.0,0.0003041,2]
[311017326,1704870668798,-1932.68,0.0003041,2]
[311017327,1704870668807,-1396.39,0.0003041,2]
[311017328,1704870668817,-500.0,0.0003041,2]
[311017329,1704870668826,-759.12,0.0003041,2]
[311017330,1704870668837,-500.0,0.0003041,2]
[311017331,1704870668849,-500.0,0.0003041,2]
[311017332,1704870668858,-500.0,0.0003041,2]
[311017333,1704870668868,-500.0,0.0003041,2]
[311017334,1704870668877,-500.0,0.0003041,2]
[311017335,1704870668886,-500.0,0.0003041,2]
[311017336,1704870668896,-500.0,0.0003041,2]
[311017337,1704870668905,-500.0,0.0003041,2]
[311017338,1704870668915,-500.0,0.0003041,2]
[311017339,1704870668926,-1122.26,0.0003041,2]
[311017340,1704870668936,-680.03,0.0003041,2]
[311017341,1704870668946,-500.0,0.0003041,2]
[311017342,1704870668956,-1280.98,0.0003041,2]
[311017343,1704870668965,-500.0,0.0003041,2]
[311017344,1704870668975,-500.0,0.0003041,2]
[311017345,1704870668985,-510.30966051,0.0003041,2]
[311017346,1704870668994,-500.0,0.0003041,5]
[311017347,1704870669004,-1238.07,0.0003041,2]
[311017348,1704870669014,-500.0,0.0003041,2]
[311017349,1704870669023,-500.0,0.0003041,2]
[311017350,1704870669033,-1034.94,0.0003041,2]
[311017351,1704870669043,-500.0,0.0003041,2]
[311017352,1704870669052,-686.0,0.0003041,2]
[311017353,1704870669062,-500.0,0.0003041,2]
[311017354,1704870669071,-500.0,0.0003041,2]
[311017355,1704870669081,-809.39,0.0003041,2]
[311017356,1704870669093,-500.0,0.0003041,2]
[311017357,1704870669103,-1017.49,0.0003041,2]
[311017358,1704870669112,-500.0,0.0003041,2]
[311017359,1704870669122,-500.0,0.0003041,2]
[311017360,1704870669131,-500.0,0.0003041,2]
[311017361,1704870669143,-1328.2,0.0003041,2]
[311017362,1704870669152,-950.34,0.0003041,2]
[311017363,1704870669162,-500.0,0.0003041,2]
[311017364,1704870669171,-3341.38,0.0003041,2]
[311017365,1704870669181,-500.0,0.0003041,2]
[311017366,1704870669192,-500.0,0.0003041,2]
[311017367,1704870669202,-670.2,0.0003041,2]
[311017368,1704870669212,-2540.16,0.0003041,2]
[311017369,1704870669221,-212.96449842,0.0003041,2]
[311017370,1704870669231,-1367.73,0.0003041,2]
[311017371,1704870669241,-500.0,0.0003041,2]
[311017372,1704870669252,-500.0,0.0003041,2]
[311017373,1704870669261,-500.0,0.0003041,2]
[311017374,1704870669271,-1727.65,0.0003041,2]
[311017375,1704870669281,-1312.94,0.0003041,2]
[311017376,1704870669291,-500.0,0.0003041,2]
[311017377,1704870669301,-500.0,0.0003041,2]
[311017378,1704870669311,-4324.61,0.0003041,2]
[311017379,1704870669321,-500.0,0.0003041,2]
[311017380,1704870669538,-1000.0,0.0003041,2]
[311017381,1704870669549,-500.0,0.0003041,2]
[311017382,1704870669558,-500.0,0.0003041,2]
[311017383,1704870669568,-653.12,0.0003041,2]
[311017384,1704870669578,-814.4,0.0003041,2]
[311017385,1704870669589,-500.0,0.0003041,2]
[311017386,1704870669599,-500.0,0.0003041,2]
[311017387,1704870669609,-2136.39,0.0003041,2]
[311017388,1704870669618,-500.0,0.0003041,2]
[311017389,1704870669629,-500.0,0.0003041,2]
[311017390,1704870669639,-1023.93,0.0003041,2]
[311017391,1704870669649,-1839.58,0.0003041,2]
[311017392,1704870669659,-500.0,0.0003041,2]
[311017393,1704870669670,-571.98043528,0.0003041,2]
[311017394,1704870669680,-500.0,0.0003041,2]
[311017395,1704870669689,-500.0,0.0003041,2]
[311017396,1704870669699,-500.0,0.0003041,2]
[311017397,1704870669709,-795.14,0.0003041,2]
[311017398,1704870669718,-500.0,0.0003041,2]
[311017399,1704870669728,-765.15,0.0003041,2]
[311017400,1704870669738,-680.64,0.0003041,2]
[311017401,1704870669747,-500.0,0.0003041,2]
[311017402,1704870669757,-3808.16,0.0003041,2]
[311017403,1704870669767,-298.29308561,0.0003041,2]
[311017404,1704870669776,-500.0,0.0003041,2]
[311017405,1704870669786,-500.0,0.0003041,2]
[311017406,1704870669795,-1091.93,0.0003041,2]
[311017407,1704870669805,-500.0,0.0003041,2]
[311017408,1704870669815,-500.0,0.0003041,2]
[311017409,1704870669825,-1386.71,0.0003041,2]
[311017410,1704870669836,-500.0,0.0003041,2]
[311017411,1704870669846,-1315.78,0.0003041,2]
[311017412,1704870669856,-850.57,0.0003041,2]
[311017413,1704870669866,-959.44,0.0003041,2]
[311017414,1704870669876,-1188.47,0.0003041,2]
[311017415,1704870669887,-867.87,0.0003041,2]
[311017416,1704870669897,-5607.81,0.0003041,2]
[311017417,1704870669907,-500.0,0.0003041,2]
[311017418,1704870669917,-454.14,0.0003041,2]
[311017419,1704870670201,-500.0,0.0003041,2]
[311017420,1704870670210,-500.0,0.0003041,2]
[311017421,1704870670220,-500.0,0.0003041,2]
[311017422,1704870670229,-500.0,0.0003041,2]
[311017423,1704870670238,-1392.89,0.0003041,2]
[311017424,1704870670247,-2379.77,0.0003041,2]
[311017425,1704870670256,-1956.34,0.0003041,2]
[311017426,1704870670265,-2165.74,0.0003041,2]
[311017427,1704870670274,-500.0,0.0003041,2]
[311017428,1704870670283,-500.0,0.0003041,2]
[311017429,1704870670293,-500.0,0.0003041,2]
[311017430,1704870670302,-2685.4,0.0003041,2]
[311017431,1704870670311,-500.0,0.0003041,2]
[311017432,1704870670321,-1510.84,0.0003041,2]
[311017433,1704870670330,-1438.74,0.0003041,2]
[311017434,1704870670341,-500.0,0.0003041,2]
[311017435,1704870670350,-2761.15,0.0003041,2]
[311017436,1704870670360,-573.36885302,0.0003041,2]
[311017437,1704870670370,-700.83,0.0003041,2]
[311017438,1704870670380,-500.0,0.0003041,2]
[311017439,1704870670389,-1552.71,0.0003041,2]
[311017440,1704870670398,-500.0,0.0003041,2]
[311017441,1704870670407,-3142.76,0.0003041,2]
[311017442,1704870670416,-559.03,0.0003041,2]
[311017443,1704870670425,-1261.25,0.0003041,2]
[311017444,1704870670435,-500.0,0.0003041,2]
[311017445,1704870670444,-500.0,0.0003041,2]
[311017446,1704870670453,-500.0,0.0003041,2]
[311017447,1704870670463,-834.98,0.0003041,2]
[311017448,1704870670473,-1656.83,0.0003041,2]
[311017449,1704870670482,-731.0,0.0003041,2]
[311017450,1704870670492,-1804.62,0.0003041,2]
[311017451,1704870670501,-500.0,0.0003041,2]
[311017452,1704870670510,-1849.98,0.0003041,2]
[311017453,1704870670520,-891.94,0.0003041,2]
[311017454,1704870670529,-500.0,0.0003041,2]
[311017455,1704870670539,-1466.49,0.0003041,2]
[311017456,1704870670548,-627.27,0.0003041,2]
[311017457,1704870670557,-1328.67,0.0003041,2]
[311017458,1704870670566,-2208.94,0.0003041,2]
[311017459,1704870670576,-500.0,0.0003041,2]
[311017460,1704870670585,-797.89,0.0003041,2]
[311017461,1704870670595,-500.0,0.0003041,2]
[311017462,1704870670604,-500.0,0.0003041,2]
[311017463,1704870670613,-500.0,0.0003041,2]
[311017464,1704870670623,-500.0,0.0003041,2]
[311017465,1704870670633,-500.0,0.0003041,2]
[311017466,1704870670642,-1744.68,0.0003041,2]
[311017467,1704870670651,-500.0,0.0003041,2]
[311017468,1704870670661,-4646.55,0.0003041,2]
[311017469,1704870670671,-13405.24,0.0003041,2]
[311017470,1704870670682,-500.0,0.0003041,2]
[311017471,1704870670691,-500.0,0.0003041,2]
[311017472,1704870670700,-500.0,0.0003041,2]
[311017473,1704870670710,-500.0,0.0003041,2]
[311017474,1704870670719,-1204.78,0.0003041,2]
[311017475,1704870670729,-600.13,0.0003041,2]
[311017476,1704870670739,-2097.86,0.0003041,2]
[311017477,1704870670748,-500.0,0.0003041,2]
[311017478,1704870670757,-1042.6,0.0003041,2]
[311017479,1704870670767,-756.26,0.0003041,2]
[311017480,1704870670776,-586.64,0.0003041,2]
[311017481,1704870670785,-500.0,0.0003041,2]
[311017482,1704870670794,-500.0,0.0003041,2]
[311017483,1704870670803,-500.7486076,0.0003041,2]
[311017484,1704870670813,-516.49,0.0003041,2]
[311017485,1704870670822,-987.15,0.0003041,2]
[311017486,1704870670831,-582.11,0.0003041,2]
[311017487,1704870670842,-500.0,0.0003041,2]
[311017488,1704870670852,-3994.62,0.0003041,2]
[311017489,1704870670862,-500.0,0.0003041,2]
[311017490,1704870670871,-2359.56,0.0003041,2]
[311017491,1704870670881,-500.0,0.0003041,2]
[311017492,1704870670890,-2376.3,0.0003041,2]
[311017493,1704870670899,-500.0,0.0003041,2]
[311017494,1704870670909,-500.0,0.0003041,2]
[311017495,1704870670918,-7174.33,0.0003041,2]
[311017496,1704870670927,-500.0,0.0003041,2]
[311017497,1704870670937,-500.0,0.0003041,2]
[311017498,1704870670946,-500.0,0.0003041,2]
[311017499,1704870670956,-2118.14,0.0003041,2]
[311017500,1704870670965,-500.0,0.0003041,2]
[311017501,1704870670975,-1599.81,0.0003041,2]
[311017502,1704870670984,-5024.81,0.0003041,2]
[311017503,1704870670994,-500.0,0.0003041,2]
[311017504,1704870671003,-2088.36,0.0003041,2]
[311017505,1704870671013,-1828.24,0.0003041,2]
[311017506,1704870671022,-500.0,0.0003041,2]
[311017507,1704870671034,-8082.26,0.0003041,2]
[311017508,1704870671043,-2044.06,0.0003041,2]
[311017509,1704870671052,-500.0,0.0003041,2]
[311017510,1704870671062,-541.83,0.0003041,2]
[311017511,1704870671071,-500.0,0.0003041,2]
[311017512,1704870671080,-1104.36,0.0003041,2]
[311017513,1704870671091,-335.24494423,0.0003041,2]
[311017514,1704870671100,-4065.29,0.0003041,2]
[311017515,1704870671109,-1147.27,0.0003041,2]
[311017516,1704870671119,-3383.4,0.0003041,2]
[311017517,1704870671128,-22040.22,0.0003041,2]
[311017518,1704870671138,-515.05,0.0003041,2]
[311017519,1704870671147,-275.77570437,0.0003041,2]
[311017520,1704870671156,-500.0,0.0003041,2]
[311017521,1704870671166,-2343.33,0.0003041,2]
[311017522,1704870671175,-2213.33,0.0003041,2]
[311017523,1704870671184,-500.0,0.0003041,2]
[311017524,1704870671193,-8135.87,0.0003041,2]
[311017525,1704870671202,-500.0,0.0003041,2]
[311017526,1704870671211,-1759.41,0.0003041,2]
[311017527,1704870671220,-500.0,0.0003041,2]
[311017528,1704870671230,-500.0,0.0003041,2]
[311017529,1704870671239,-503.91,0.0003041,2]
[311017530,1704870671248,-500.0,0.0003041,2]
[311017531,1704870671258,-502.14037382,0.0003041,2]
[311017532,1704870671267,-513.44061293,0.0003041,2]
[311017533,1704870671277,-705.23,0.0003041,2]
[311017534,1704870671287,-568.42,0.0003041,2]
[311017535,1704870671297,-500.0,0.0003041,2]
[311017536,1704870671307,-500.0,0.0003041,2]
[311017537,1704870671317,-1047.2,0.0003041,2]
[311017538,1704870671329,-500.0,0.0003041,2]
[311017539,1704870671341,-1996.32,0.0003041,2]
[311017540,1704870671351,-500.0,0.0003041,2]
[311017541,1704870671362,-1414.57,0.0003041,2]
[311017542,1704870671373,-17575.17,0.0003041,2]
[311017543,1704870671382,-757.58,0.0003041,2]
[311017544,1704870671392,-500.0,0.0003041,2]
[311017545,1704870671402,-5204.9,0.0003041,2]
[311017546,1704870671412,-519.05966746,0.0003041,2]
[311017547,1704870671421,-500.0,0.0003041,2]
[311017548,1704870671432,-7005.81,0.0003041,2]
[311017549,1704870671442,-713.47,0.0003041,2]
[311017550,1704870671452,-906.38,0.0003041,2]
[311017551,1704870671462,-4425.89,0.0003041,2]
[311017552,1704870671471,-1690.93,0.0003041,2]
[311017553,1704870671480,-859.95,0.0003041,2]
[311017554,1704870671490,-500.0,0.0003041,2]
[311017555,1704870671499,-500.0,0.0003041,2]
[311017556,1704870671509,-500.0,0.0003041,2]
[311017557,1704870671518,-589.1,0.0003041,2]
[311017558,1704870671527,-500.0,0.0003041,2]
[311017559,1704870671537,-643.92,0.0003041,2]
[311017560,1704870671547,-980.58,0.0003041,2]
[311017561,1704870671556,-1353.96,0.0003041,2]
[311017562,1704870671566,-8374.45,0.0003041,2]
[311017563,1704870671575,-500.0,0.0003041,2]
[311017564,1704870671586,-500.0,0.0003041,2]
[311017565,1704870671596,-500.0,0.0003041,2]
[311017566,1704870671605,-12913.78,0.0003041,2]
[311017567,1704870671615,-500.0,0.0003041,2]
[311017568,1704870671625,-500.0,0.0003041,2]
[311017569,1704870671635,-1833.05,0.0003041,2]
[311017570,1704870671644,-500.0,0.0003041,2]
[311017571,1704870671654,-662.43,0.0003041,2]
[311017572,1704870671664,-917.99,0.0003041,2]
[311017573,1704870671673,-500.0,0.0003041,2]
[311017574,1704870671683,-500.0,0.0003041,2]
[311017575,1704870671693,-500.0,0.0003041,2]
[311017576,1704870671703,-544.98,0.0003041,2]
[311017577,1704870671712,-500.0,0.0003041,2]
[311017578,1704870671721,-500.0,0.0003041,2]
[311017579,1704870671730,-500.0,0.0003041,2]
[311017580,1704870671740,-1893.17,0.0003041,2]
[311017581,1704870671749,-708.88,0.0003041,2]
[311017582,1704870671758,-500.0,0.0003041,2]
[311017583,1704870671768,-57080.54,0.0003041,2]
[311017584,1704870671778,-1238.96,0.0003041,2]
[311017585,1704870671787,-291.21232248,0.0003041,2]
[311017586,1704870671796,-638.04,0.0003041,2]
[311017587,1704870671806,-6998.79,0.0003041,2]
[311017588,1704870671815,-1579.69,0.0003041,2]
[311017589,1704870671825,-4494.36,0.0003041,2]
[311017590,1704870671836,-1515.42,0.0003041,2]
[311017591,1704870671846,-500.0,0.0003041,2]
[311017592,1704870671856,-602.87,0.0003041,2]
[311017593,1704870671865,-500.0,0.0003041,2]
[311017594,1704870671874,-999.07,0.0003041,2]
[311017595,1704870671883,-11764.06,0.0003041,2]
[311017596,1704870671892,-500.0,0.0003041,2]
[311017597,1704870671901,-500.0,0.0003041,2]
[311017598,1704870671910,-646.4,0.0003041,2]
[311017599,1704870671919,-1157.8,0.0003041,2]
[311017600,1704870671929,-500.0,0.0003041,2]
[311017601,1704870671938,-1023.23,0.0003041,2]
[311017602,1704870671947,-500.0,0.0003041,2]
[311017603,1704870671956,-500.0,0.0003041,2]
[311017604,1704870671965,-672.47,0.0003041,2]
[311017605,1704870671974,-500.0,0.0003041,2]
[311017606,1704870671983,-500.0,0.0003041,2]
[311017607,1704870671993,-500.0,0.0003041,2]
[311017608,1704870672002,-3048.02,0.0003041,2]
[311017609,1704870672011,-500.0,0.0003041,2]
[311017610,1704870672021,-500.0,0.0003041,2]
[311017611,1704870672030,-3117.17,0.0003041,2]
[311017612,1704870672039,-1402.8,0.0003041,2]
[311017613,1704870672048,-1813.54,0.0003041,2]
[311017614,1704870672057,-769.24,0.0003041,2]
[311017615,1704870672066,-5710.88,0.0003041,2]
[311017616,1704870672075,-784.06,0.0003041,2]
[311017617,1704870672085,-500.0,0.0003041,2]
[311017618,1704870672095,-1432.69,0.0003041,2]
[311017619,1704870672104,-500.0,0.0003041,2]
[311017620,1704870672113,-603.6,0.0003041,2]
[311017621,1704870672122,-645.22,0.0003041,2]
[311017622,1704870672131,-500.0,0.0003041,2]
[311017623,1704870672141,-500.0,0.0003041,2]
[311017624,1704870672151,-3375.63,0.0003041,2]
[311017625,1704870672161,-500.0,0.0003041,2]
[311017626,1704870672170,-500.0,0.0003041,2]
[311017627,1704870672179,-730.79,0.0003041,2]
[311017628,1704870672189,-2491.7,0.0003041,2]
[311017629,1704870672198,-1149.22,0.0003041,2]
[311017630,1704870672208,-3851.17,0.0003041,2]
[311017631,1704870672218,-500.0,0.0003041,2]
[311017632,1704870672228,-500.0,0.0003041,2]
[311017633,1704870672238,-500.0,0.0003041,2]
[311017634,1704870672247,-1773.31,0.0003041,2]
[311017635,1704870672257,-500.0,0.0003041,2]
[311017636,1704870672266,-500.0,0.0003041,2]
[311017637,1704870672275,-500.0,0.0003041,2]
[311017638,1704870672284,-1945.04,0.0003041,2]
[311017639,1704870672293,-500.0,0.0003041,2]
[311017640,1704870672302,-383.55706319,0.0003041,2]
[311017641,1704870672312,-941.29,0.0003041,2]
[311017642,1704870672322,-500.0,0.0003041,2]
[311017643,1704870672331,-500.0,0.0003041,2]
[311017644,1704870672343,-2369.24,0.0003041,2]
[311017645,1704870672354,-13222.53,0.0003041,2]
[311017646,1704870672363,-3940.72,0.0003041,2]
[311017647,1704870672373,-1547.67,0.0003041,2]
[311017648,1704870672381,-500.0,0.0003041,2]
[311017649,1704870672390,-500.0,0.0003041,2]
[311017650,1704870672399,-500.0,0.0003041,2]
[311017651,1704870672408,-500.0,0.0003041,2]
[311017652,1704870672417,-500.0,0.0003041,2]
[311017653,1704870672426,-2569.76,0.0003041,2]
[311017654,1704870672435,-600.98,0.0003041,2]
[311017655,1704870672543,-3191.37,0.0003041,2]
[311017656,1704870672553,-500.0,0.0003041,2]
[311017657,1704870672562,-880.07,0.0003041,2]
[311017658,1704870672571,-558.9746859,0.0003041,2]
[311017659,1704870672581,-500.0,0.0003041,2]
[311017660,1704870672591,-511.02480889,0.0003041,2]
[311017661,1704870672600,-976.63,0.0003041,2]
[311017662,1704870672609,-1781.62,0.0003041,2]
[311017663,1704870672618,-2231.46,0.0003041,2]
[311017664,1704870672628,-500.0,0.0003041,2]
[311017665,1704870672637,-500.0,0.0003041,2]
[311017666,1704870672646,-699.13,0.0003041,2]
[311017667,1704870672655,-1000.0,0.0003041,2]
[311017668,1704870672664,-500.0,0.0003041,2]
[311017669,1704870672674,-500.0,0.0003041,2]
[311017670,1704870672683,-3212.67,0.0003041,2]
[311017671,1704870672692,-500.0,0.0003041,2]
[311017672,1704870672701,-548.75,0.0003041,2]
[311017673,1704870672710,-500.0,0.0003041,2]
[311017674,1704870672719,-679.83,0.0003041,2]
[311017675,1704870672728,-5456.23,0.0003041,2]
[311017676,1704870672737,-4540.83,0.0003041,2]
[311017677,1704870672746,-500.0,0.0003041,2]
[311017678,1704870672756,-500.0,0.0003041,2]
[311017679,1704870672765,-1711.05,0.0003041,2]
[311017680,1704870672775,-599.33,0.0003041,2]
[311017681,1704870672784,-508.46,0.0003041,2]
[311017682,1704870672794,-500.0,0.0003041,2]
[311017683,1704870672803,-500.0,0.0003041,2]
[311017684,1704870672812,-500.0,0.0003041,2]
[311017685,1704870672821,-500.0,0.0003041,2]
[311017686,1704870672831,-541.66,0.0003041,2]
[311017687,1704870672843,-500.0,0.0003041,2]
[311017688,1704870672853,-3077.49,0.0003041,2]
[311017689,1704870672862,-500.0,0.0003041,2]
[311017690,1704870672871,-741.19,0.0003041,2]
[311017691,1704870672880,-738.51,0.0003041,2]
[311017692,1704870672889,-500.0,0.0003041,2]
[311017693,1704870672899,-1510.29,0.0003041,2]
[311017694,1704870672908,-1203.02,0.0003041,2]
[311017695,1704870672918,-20608.11,0.0003041,2]
[311017696,1704870672927,-808.77,0.0003041,2]
[311017697,1704870672936,-500.0,0.0003041,2]
[311017698,1704870672945,-4390.05,0.0003041,2]
[311017699,1704870672954,-3200.67,0.0003041,2]
[311017700,1704870672964,-1849.41,0.0003041,2]
[311017701,1704870672974,-500.0,0.0003041,2]
[311017702,1704870672983,-500.0,0.0003041,2]
[311017703,1704870672992,-500.0,0.0003041,2]
[311017704,1704870673001,-500.0,0.0003041,2]
[311017705,1704870673011,-500.0,0.0003041,2]
[311017706,1704870673021,-1752.01,0.0003041,2]
[311017707,1704870673030,-500.0,0.0003041,2]
[311017708,1704870673039,-500.0,0.0003041,2]
[311017709,1704870673049,-500.0,0.0003041,2]
[311017710,1704870673058,-500.0,0.0003041,2]
[311017711,1704870673068,-500.0,0.0003041,2]
[311017712,1704870673077,-749.91,0.0003041,2]
[311017713,1704870673089,-1269.96,0.0003041,2]
[311017714,1704870673099,-591.72605555,0.0003041,2]
[311017715,1704870673108,-1111.52,0.0003041,2]
[311017716,1704870673117,-5610.45,0.0003041,2]
[311017717,1704870673127,-500.0,0.0003041,2]
[311017718,1704870673136,-6489.8,0.0003041,2]
[311017719,1704870673146,-668.09,0.0003041,2]
[311017720,1704870673155,-500.0,0.0003041,2]
[311017721,1704870673165,-500.0,0.0003041,2]
[311017722,1704870673175,-1521.59,0.0003041,2]
[311017723,1704870673184,-500.0,0.0003041,2]
[311017724,1704870673193,-500.0,0.0003041,2]
[311017725,1704870673202,-500.0,0.0003041,2]
[311017726,1704870673211,-1488.29,0.0003041,2]
[311017727,1704870673220,-500.0,0.0003041,2]
[311017728,1704870673230,-400.75,0.0003041,2]
[311017729,1704870673239,-500.0,0.0003041,2]
[311017730,1704870673248,-1791.26,0.0003041,2]
[311017731,1704870673258,-13764.43,0.0003041,2]
[311017732,1704870673267,-1272.61,0.0003041,2]
[311017733,1704870673277,-3827.43,0.0003041,2]
[311017734,1704870673286,-22537.9,0.0003041,2]
[311017735,1704870673296,-1494.82,0.0003041,2]
[311017736,1704870673305,-500.0,0.0003041,2]
[311017737,1704870673314,-500.0,0.0003041,2]
[311017738,1704870673323,-513.94,0.0003041,2]
[311017739,1704870673333,-500.0,0.0003041,2]
[311017740,1704870673343,-2693.87,0.0003041,2]
[311017741,1704870673356,-1437.34,0.0003041,2]
[311017742,1704870673366,-500.0,0.0003041,2]
[311017743,1704870673375,-1048.75,0.0003041,2]
[311017744,1704870673384,-737.91,0.0003041,2]
[311017745,1704870673393,-500.0,0.0003041,2]
[311017746,1704870673403,-500.0,0.0003041,2]
[311017747,1704870673412,-1358.29,0.0003041,2]
[311017748,1704870673421,-2264.84,0.0003041,2]
[311017749,1704870673430,-557.49,0.0003041,2]
[311017750,1704870673440,-500.0,0.0003041,2]
[311017751,1704870673449,-550.94,0.0003041,2]
[311017752,1704870673459,-500.0,0.0003041,2]
[311017753,1704870673469,-500.0,0.0003041,2]